fUST/lending_fUST_20240801
["ID","MTS","AMOUNT","RATE_DAILY","PERIOD"]
[333814969,1722527263324,273.37336231,9.9e-05,2]
[333814970,1722527271244,273.37336231,9.9e-05,2]
[333814971,1722527280113,273.37336231,9.9e-05,2]
[333814972,1722527287915,273.37336231,9.9e-05,2]
[333814973,1722527288708,218.30768663,9.999e-05,2]
[333814974,1722527290617,156.92418716,9.999e-05,2]
[333814975,1722527290780,404.65460675,9.999e-05,2]
[333814976,1722527292017,180.43272034,9.999e-05,2]
[333814977,1722527292271,201.42471188,9.999e-05,2]
[333814978,1722527294392,154.66746495,9.999e-05,2]
[333814979,1722527296338,201.42471188,9.899e-05,2]
[333814981,1722527304229,273.37336231,9.9e-05,2]
[333814982,1722527304585,542.94098629,9.999e-05,2]
[333814983,1722527305082,290.31500293,9.999e-05,2]
[333814984,1722527305435,403.63665668,9.999e-05,2]
[333814985,1722527308661,196.08966082,9.999e-05,2]
[333814986,1722527312928,273.37336231,9.9e-05,2]
[333814987,1722527313218,154.66746495,0.0001,2]
[333814988,1722527313409,341.96120082,9.999e-05,2]
[333814989,1722527315791,159.19936466,9.999e-05,2]
[333814990,1722527318876,280.54395621,9.999e-05,2]
[333814991,1722527320233,3601.36284679,9.9e-05,2]
[333814992,1722527320938,273.37336231,9.9e-05,2]
[333814993,1722527321810,4711.55984281,9.9e-05,2]
[333814994,1722527322367,727.33991579,9.999e-05,2]
[333814995,1722527323406,568.42284982,9.999e-05,2]
[333814996,1722527325425,156.77873769,9.999e-05,2]
[333814997,1722527325507,1626.86783463,9.9e-05,2]
[333814998,1722527327890,533.78606257,9.999e-05,2]
[333814999,1722527328473,890.12096781,9.999e-05,2]
[333815000,1722527329091,273.37336231,9.9e-05,2]
[333815001,1722527330239,3601.36284679,9.9e-05,2]
[333815002,1722527331139,2108.40472945,9.9e-05,2]
[333815003,1722527331498,849.18218214,9.999e-05,2]
[333815004,1722527332698,156.57079759,9.999e-05,2]
[333815005,1722527333465,1626.86783463,9.9e-05,2]
[333815006,1722527333543,531.94294972,9.999e-05,2]
[333815007,1722527334012,1492.55194249,9.9e-05,2]
[333815008,1722527334325,779.46237368,9.999e-05,2]
[333815009,1722527334540,154.66746495,9.999e-05,2]
[333815010,1722527334591,542.94098629,9.999e-05,2]
[333815011,1722527336421,413.80608461,9.999e-05,2]
[333815012,1722527336942,273.37336231,9.9e-05,2]
[333815013,1722527340101,319.6458186,9.999e-05,2]
[333815014,1722527345085,273.37336231,9.9e-05,2]
[333815015,1722527346234,2108.40472945,9.9e-05,2]
[333815016,1722527346588,3784.89538686,9.9e-05,2]
[333815017,1722527347432,600.69981744,9.999e-05,2]
[333815018,1722527348004,178.51278846,9.999e-05,2]
[333815019,1722527348505,849.18218214,9.999e-05,2]
[333815020,1722527349370,6250.94900024,9.9e-05,2]
[333815021,1722527350323,13086.8827947,9.9e-05,2]
[333815022,1722527351252,-363.02,0.00010959,2]
[333815023,1722527351273,-242.01,0.00010959,2]
[333815024,1722527351295,-201.68,0.00010959,2]
[333815025,1722527351318,-168.06,0.00010959,2]
[333815026,1722527351339,-840.35,0.00010959,2]
[333815027,1722527351360,-0.25874358,0.00011999,2]
[333815028,1722527353006,273.37336231,9.9e-05,2]
[333815029,1722527355084,319.6458186,9.999e-05,2]
[333815030,1722527356918,338.92956328,9.999e-05,2]
[333815031,1722527362246,273.37336231,9.9e-05,2]
[333815032,1722527363349,664.0681359,9.999e-05,2]
[333815033,1722527364322,779.46237368,9.999e-05,2]
[333815034,1722527368128,154.66746495,9.999e-05,2]
[333815035,1722527370342,165.49284567,9.999e-05,2]
[333815036,1722527370380,273.37336231,9.9e-05,2]
[333815037,1722527370613,156.92418716,9.999e-05,2]
[333815038,1722527374879,163.02554165,9.999e-05,2]
[333815039,1722527375789,494.10879056,9.999e-05,2]
[333815040,1722527376791,404.65460675,9.999e-05,2]
[333815041,1722527379112,273.37336231,9.9e-05,2]
[333815045,1722527383703,218.30768663,9.999e-05,2]
[333815049,1722527386961,273.37336231,9.9e-05,2]
[333815050,1722527391639,180.43272034,9.999e-05,2]
[333815051,1722527392237,201.42471188,9.999e-05,2]
[333815052,1722527396255,273.37336231,9.9e-05,2]
[333815053,1722527396427,204.08111002,9.999e-05,2]
[333815054,1722527399750,201.42471188,9.999e-05,2]
[333815055,1722527404859,273.37336231,9.9e-05,2]
[333815056,1722527407800,159.19936466,9.999e-05,2]
[333815057,1722527410383,210.5451111,9.999e-05,2]
[333815058,1722527411086,290.31500293,9.999e-05,2]
[333815059,1722527413432,341.96120082,9.999e-05,2]
[333815060,1722527413626,273.37336231,9.9e-05,2]
[333815061,1722527414490,568.42284982,9.999e-05,2]
[333815062,1722527419825,4711.55984281,9.999e-05,2]
[333815063,1722527420431,403.63665668,9.999e-05,2]
[333815064,1722527421530,180.43272034,9.999e-05,2]
[333815065,1722527421578,273.37336231,9.9e-05,2]
[333815066,1722527423198,154.66746495,0.0001,2]
[333815067,1722527424167,154.66746495,9.999e-05,2]
[333815068,1722527427439,413.80608461,9.999e-05,2]
[333815069,1722527428437,403.63665668,9.999e-05,2]
[333815070,1722527429017,1492.55194249,9.999e-05,2]
[333815071,1722527430395,273.37336231,9.9e-05,2]
[333815107,1722527432966,-459.55767833,0.00012119,2]
[333815109,1722527432976,-300.0,0.00012119,2]
[333815120,1722527432987,-336.10460123,0.0001212,2]
[333815122,1722527433110,-890.12096781,0.0001212,2]
[333815124,1722527433120,-555.94182926,0.0001212,2]
[333815126,1722527433130,-3601.36284679,0.0001212,2]
[333815128,1722527433140,-1038.87671587,0.0001212,2]
[333815130,1722527433150,-533.78606257,0.0001212,2]
[333815132,1722527433160,-391.12294837,0.0001212,2]
[333815134,1722527433170,-1773.74868678,0.0001212,2]
[333815136,1722527433180,-319.6458186,0.0001212,2]
[333815138,1722527433190,-404.65460675,0.0001212,2]
[333815140,1722527433200,-156.92418716,0.0001212,2]
[333815142,1722527433210,-154.66746495,0.0001212,2]
[333815144,1722527433220,-779.46237368,0.0001212,2]
[333815146,1722527433231,-664.0681359,0.0001212,2]
[333815148,1722527433244,-218.30768663,0.0001212,2]
[333815150,1722527433254,-163.02554165,0.0001212,2]
[333815152,1722527433264,-2000.0,0.00012508,2]
[333815154,1722527433274,-2981.15286296,0.00012699,2]
[333815156,1722527433284,-3144.06675449,0.000129,2]
[333815158,1722527433296,-2687.80827332,0.000129,2]
[333815163,1722527433336,-118.25757482,0.000129,2]
[333815218,1722527433877,727.33991579,9.999e-05,2]
[333815291,1722527434591,3784.89538686,9.999e-05,2]
[333815303,1722527434693,186.46986829,9.999e-05,2]
[333815311,1722527434821,4711.55984281,9.999e-05,2]
[333815312,1722527435054,531.94294972,9.999e-05,2]
[333815322,1722527438387,533.78606257,9.999e-05,2]
[333815329,1722527438457,273.37336231,9.9e-05,2]
[333815355,1722527438733,-165.49284567,0.0001212,2]
[333815357,1722527438747,-666.02290606,0.000129,2]
[333815359,1722527438761,-166.167564,0.00012986,2]
[333815361,1722527438773,-2981.15286296,0.00013098,2]
[333815362,1722527438783,-420.0,0.00013331,2]
[333815364,1722527438795,-2981.15286296,0.00013497,2]
[333815366,1722527438805,-1258.38,0.00013597,2]
[333815368,1722527438815,-1258.38,0.00013597,2]
[333815370,1722527438827,-1258.38,0.00013597,2]
[333815371,1722527438836,-150.112233,0.000136,2]
[333815373,1722527438846,-4407.3688225,0.00013688,2]
[333815380,1722527438936,-365615.7796115,0.00013688,2]
[333815382,1722527438947,-27382.43825145,0.00013698,5]
[333815383,1722527438957,-500.0,0.00013698,2]
[333815384,1722527438967,-500.0,0.00013698,2]
[333815385,1722527438977,-500.0,0.00013698,2]
[333815386,1722527438991,-245.44,0.00013698,2]
[333815387,1722527439000,-500.0,0.00013698,2]
[333815388,1722527439010,-500.0,0.00013698,2]
[333815389,1722527439020,-500.0,0.00013698,2]
[333815390,1722527439030,-500.0,0.00013698,2]
[333815391,1722527439039,-503.05056989,0.00013698,2]
[333815392,1722527439049,-500.0,0.00013698,2]
[333815393,1722527439059,-504.03913562,0.00013698,2]
[333815394,1722527439070,-500.0,0.00013698,2]
[333815395,1722527439079,-500.0,0.00013698,2]
[333815396,1722527439090,-500.0,0.00013698,2]
[333815397,1722527439099,-500.0,0.00013698,2]
[333815398,1722527439110,-654.18,0.00013698,2]
[333815399,1722527439120,-500.0,0.00013698,2]
[333815400,1722527439130,-500.0,0.00013698,2]
[333815401,1722527439139,-653.73,0.00013698,2]
[333815402,1722527439148,-500.0,0.00013698,2]
[333815403,1722527439158,-500.0,0.00013698,2]
[333815404,1722527439168,-500.0,0.00013698,2]
[333815405,1722527439177,-500.0,0.00013698,2]
[333815406,1722527439187,-502.03914389,0.00013698,2]
[333815407,1722527439197,-500.0,0.00013698,2]
[333815408,1722527439207,-500.0,0.00013698,2]
[333815409,1722527439217,-500.0,0.00013698,2]
[333815410,1722527439227,-500.0,0.00013698,2]
[333815411,1722527439239,-500.0,0.00013698,2]
[333815412,1722527439250,-500.0,0.00013698,2]
[333815413,1722527439260,-500.0,0.00013698,2]
[333815414,1722527439270,-500.0,0.00013698,2]
[333815415,1722527439279,-500.0,0.00013698,2]
[333815416,1722527439288,-500.0,0.00013698,2]
[333815417,1722527439298,-574.72941027,0.00013698,2]
[333815418,1722527439307,-500.0,0.00013698,2]
[333815419,1722527439317,-500.0,0.00013698,2]
[333815420,1722527439327,-504.48768391,0.00013698,2]
[333815421,1722527439336,-162.0,0.00013698,2]
[333815422,1722527439345,-500.0,0.00013698,2]
[333815423,1722527439354,-500.0,0.00013698,2]
[333815424,1722527439363,-500.0,0.00013698,2]
[333815425,1722527439373,-500.0,0.00013698,2]
[333815426,1722527439383,-500.0,0.00013698,2]
[333815427,1722527439393,-500.0,0.00013698,2]
[333815428,1722527439403,-501.75326931,0.00013698,2]
[333815429,1722527439413,-500.0,0.00013698,2]
[333815430,1722527439423,-547.53470764,0.00013698,2]
[333815431,1722527439433,-500.0,0.00013698,2]
[333815432,1722527439442,-500.0,0.00013698,2]
[333815433,1722527439452,-503.59309508,0.00013698,2]
[333815434,1722527439461,-500.0,0.00013698,2]
[333815435,1722527439471,-500.0,0.00013698,2]
[333815436,1722527439480,-500.0,0.00013698,2]
[333815437,1722527439493,-500.0,0.00013698,2]
[333815438,1722527439503,-500.0,0.00013698,2]
[333815439,1722527439513,-500.0,0.00013698,2]
[333815440,1722527439525,-502.00566265,0.00013698,2]
[333815441,1722527439536,-500.0,0.00013698,2]
[333815442,1722527439546,-500.0,0.00013698,2]
[333815443,1722527439555,-500.0,0.00013698,2]
[333815444,1722527439565,-500.0,0.00013698,2]
[333815445,1722527439575,-583.87173242,0.00013698,2]
[333815446,1722527439585,-500.0,0.00013698,2]
[333815447,1722527439595,-402.99362953,0.00013698,2]
[333815448,1722527439605,-500.0,0.00013698,2]
[333815449,1722527439615,-500.0,0.00013698,2]
[333815450,1722527439625,-500.0,0.00013698,2]
[333815451,1722527439635,-500.0,0.00013698,2]
[333815452,1722527439645,-500.0,0.00013698,2]
[333815453,1722527439654,-500.0,0.00013698,2]
[333815454,1722527439664,-503.97976153,0.00013698,2]
[333815455,1722527439673,-500.0,0.00013698,2]
[333815456,1722527439683,-500.0,0.00013698,2]
[333815457,1722527439693,-500.0,0.00013698,2]
[333815458,1722527439703,-500.0,0.00013698,2]
[333815459,1722527439713,-638.92922926,0.00013698,2]
[333815460,1722527439723,-339.54805897,0.00013698,2]
[333815461,1722527439732,-500.0,0.00013698,2]
[333815462,1722527439750,-500.0,0.00013698,2]
[333815463,1722527439760,-500.0,0.00013698,2]
[333815464,1722527439770,-500.0,0.00013698,2]
[333815465,1722527439781,-500.0,0.00013698,2]
[333815466,1722527439791,-500.0,0.00013698,2]
[333815467,1722527439800,-500.0,0.00013698,2]
[333815468,1722527439811,-500.0,0.00013698,2]
[333815469,1722527439923,-500.0,0.00013698,2]
[333815470,1722527439933,-500.0,0.00013698,2]
[333815471,1722527439942,-500.0,0.00013698,2]
[333815472,1722527439952,-613.36,0.00013698,2]
[333815473,1722527439962,-500.0,0.00013698,2]
[333815474,1722527439971,-500.0,0.00013698,2]
[333815475,1722527439981,-500.0,0.00013698,2]
[333815476,1722527439993,-504.37203134,0.00013698,2]
[333815477,1722527440003,-500.0,0.00013698,2]
[333815478,1722527440013,-555.47260942,0.00013698,2]
[333815479,1722527440023,-500.0,0.00013698,2]
[333815480,1722527440032,-500.0,0.00013698,2]
[333815481,1722527440043,-500.0,0.00013698,2]
[333815482,1722527440054,-500.0,0.00013698,2]
[333815483,1722527440064,-509.79595984,0.00013698,2]
[333815484,1722527440074,-500.0,0.00013698,2]
[333815485,1722527440083,-500.0,0.00013698,2]
[333815486,1722527440092,-519.68227313,0.00013698,2]
[333815487,1722527440102,-500.0,0.00013698,2]
[333815488,1722527440111,-500.0,0.00013698,2]
[333815489,1722527440122,-500.0,0.00013698,2]
[333815490,1722527440132,-500.0,0.00013698,2]
[333815491,1722527440141,-500.0,0.00013698,2]
[333815492,1722527440151,-500.0,0.00013698,2]
[333815493,1722527440161,-500.0,0.00013698,2]
[333815494,1722527440170,-500.0,0.00013698,2]
[333815495,1722527440180,-501.44362308,0.00013698,2]
[333815496,1722527440191,-500.0,0.00013698,2]
[333815497,1722527440201,-500.0,0.00013698,2]
[333815498,1722527440211,-502.21944366,0.00013698,2]
[333815499,1722527440221,-500.6897106,0.00013698,2]
[333815500,1722527440231,-500.0,0.00013698,2]
[333815501,1722527440243,-500.0,0.00013698,2]
[333815502,1722527440253,-500.0,0.00013698,2]
[333815503,1722527440262,-179.84496654,0.00013698,2]
[333815504,1722527440271,-163.14364256,0.00013698,2]
[333815506,1722527440280,-500.0,0.00013698,2]
[333815508,1722527440289,-500.0,0.00013698,2]
[333815510,1722527440298,-438.81418742,0.00013698,2]
[333815512,1722527440307,-500.0,0.00013698,2]
[333815514,1722527440316,-500.0,0.00013698,2]
[333815515,1722527440325,-500.0,0.00013698,2]
[333815516,1722527440335,-500.0,0.00013698,2]
[333815517,1722527440345,-571.11628716,0.00013698,2]
[333815519,1722527440355,-500.0,0.00013698,2]
[333815521,1722527440365,-500.0,0.00013698,2]
[333815523,1722527440375,-217.18052133,0.00013698,2]
[333815524,1722527440385,-500.0,0.00013698,2]
[333815525,1722527440395,-550.83473118,0.00013698,2]
[333815526,1722527440405,-500.0,0.00013698,2]
[333815527,1722527440415,-508.43280894,0.00013698,2]
[333815528,1722527440425,-609.85314105,0.00013698,2]
[333815529,1722527440435,-500.0,0.00013698,2]
[333815530,1722527440445,-500.0,0.00013698,2]
[333815531,1722527440454,-315.32000538,0.00013698,2]
[333815532,1722527440463,-500.0,0.00013698,2]
[333815533,1722527440473,-500.0,0.00013698,2]
[333815534,1722527440482,-536.81620935,0.00013698,2]
[333815535,1722527440494,-500.0,0.00013698,2]
[333815536,1722527440504,-500.0,0.00013698,2]
[333815537,1722527440514,-500.0,0.00013698,2]
[333815538,1722527440524,-500.71211976,0.00013698,2]
[333815539,1722527440535,-500.0,0.00013698,2]
[333815540,1722527440545,-526.71112209,0.00013698,2]
[333815541,1722527440554,-500.0,0.00013698,2]
[333815542,1722527440564,-681.35,0.00013698,2]
[333815543,1722527440574,-500.0,0.00013698,2]
[333815544,1722527440583,-500.0,0.00013698,2]
[333815545,1722527440593,-500.0,0.00013698,2]
[333815546,1722527440602,-500.0,0.00013698,2]
[333815547,1722527440614,-500.0,0.00013698,2]
[333815548,1722527440625,-500.0,0.00013698,2]
[333815549,1722527440635,-500.0,0.00013698,2]
[333815550,1722527440645,-503.13608892,0.00013698,2]
[333815551,1722527440655,-500.0,0.00013698,2]
[333815552,1722527440666,-508.46,0.00013698,2]
[333815553,1722527440676,-500.0,0.00013698,2]
[333815554,1722527440686,-500.0,0.00013698,2]
[333815555,1722527440696,-500.0,0.00013698,2]
[333815556,1722527440706,-500.0,0.00013698,2]
[333815557,1722527440716,-500.0,0.00013698,2]
[333815558,1722527440726,-601.8,0.00013698,2]
[333815559,1722527440736,-500.0,0.00013698,2]
[333815560,1722527440748,-500.0,0.00013698,2]
[333815561,1722527440761,-500.0,0.00013698,2]
[333815563,1722527440770,-500.0,0.00013698,2]
[333815565,1722527440780,-500.0,0.00013698,2]
[333815567,1722527440791,-500.0,0.00013698,2]
[333815569,1722527440801,-500.0,0.00013698,2]
[333815571,1722527440810,-500.0,0.00013698,2]
[333815572,1722527440820,-600.49035524,0.00013698,2]
[333815573,1722527440831,-977.11,0.00013698,2]
[333815574,1722527440840,-500.0,0.00013698,2]
[333815576,1722527440850,-500.0,0.00013698,2]
[333815578,1722527440859,-500.0,0.00013698,2]
[333815579,1722527440870,-500.0,0.00013698,2]
[333815580,1722527440879,-326.59451407,0.00013698,2]
[333815581,1722527440888,-500.0,0.00013698,2]
[333815582,1722527440898,-500.0,0.00013698,2]
[333815583,1722527440907,-500.0,0.00013698,2]
[333815584,1722527440916,-500.0,0.00013698,2]
[333815585,1722527440927,-500.0,0.00013698,2]
[333815587,1722527440936,-500.0,0.00013698,2]
[333815589,1722527440946,-500.0,0.00013698,2]
[333815591,1722527440955,-500.0,0.00013698,2]
[333815593,1722527440965,-500.0,0.00013698,2]
[333815594,1722527440974,-500.0,0.00013698,2]
[333815596,1722527440984,-837.25,0.00013698,2]
[333815598,1722527440997,-500.0,0.00013698,2]
[333815600,1722527441006,-500.0,0.00013698,2]
[333815602,1722527441015,-500.0,0.00013698,2]
[333815603,1722527441025,-500.0,0.00013698,2]
[333815604,1722527441035,-500.0,0.00013698,2]
[333815606,1722527441046,-500.0,0.00013698,2]
[333815608,1722527441056,-500.48679161,0.00013698,2]
[333815610,1722527441066,-500.0,0.00013698,2]
[333815612,1722527441077,-500.0,0.00013698,2]
[333815613,1722527441087,-500.0,0.00013698,2]
[333815614,1722527441097,-500.0,0.00013698,2]
[333815615,1722527441107,-500.0,0.00013698,2]
[333815617,1722527441116,-500.0,0.00013698,2]
[333815618,1722527441126,-500.0,0.00013698,2]
[333815619,1722527441136,-500.0,0.00013698,2]
[333815620,1722527441145,-500.0,0.00013698,2]
[333815621,1722527441155,-500.0,0.00013698,2]
[333815622,1722527441164,-500.0,0.00013698,2]
[333815623,1722527441174,-500.0,0.00013698,2]
[333815624,1722527441184,-207.30198079,0.00013698,2]
[333815625,1722527441194,-500.0,0.00013698,2]
[333815626,1722527441204,-500.0,0.00013698,2]
[333815627,1722527441214,-500.0,0.00013698,2]
[333815628,1722527441223,-500.0,0.00013698,2]
[333815629,1722527441232,-192.18361047,0.00013698,2]
[333815630,1722527441244,-500.0,0.00013698,2]
[333815631,1722527441254,-500.0,0.00013698,2]
[333815632,1722527441263,-500.0,0.00013698,2]
[333815633,1722527441273,-500.0,0.00013698,2]
[333815634,1722527441282,-381.49558856,0.00013698,2]
[333815635,1722527441292,-500.0,0.00013698,2]
[333815636,1722527441302,-500.0,0.00013698,2]
[333815637,1722527441313,-500.0,0.00013698,2]
[333815638,1722527441322,-583.17618753,0.00013698,2]
[333815639,1722527441332,-500.0,0.00013698,2]
[333815640,1722527441343,-500.0,0.00013698,2]
[333815641,1722527441352,-500.0,0.00013698,2]
[333815642,1722527441362,-500.0,0.00013698,2]
[333815643,1722527441371,-615.73239655,0.00013698,2]
[333815644,1722527441380,-500.0,0.00013698,2]
[333815645,1722527441389,-500.0,0.00013698,2]
[333815646,1722527441399,-500.0,0.00013698,2]
[333815647,1722527441409,-500.0,0.00013698,2]
[333815648,1722527441418,-500.0,0.00013698,2]
[333815649,1722527441428,-500.0,0.00013698,2]
[333815650,1722527441438,-500.0,0.00013698,2]
[333815651,1722527441448,-500.0,0.00013698,2]
[333815652,1722527441458,-549.82,0.00013698,2]
[333815653,1722527441467,-500.0,0.00013698,2]
[333815654,1722527441477,-500.0,0.00013698,2]
[333815655,1722527441487,-500.0,0.00013698,2]
[333815656,1722527441498,-500.0,0.00013698,2]
[333815657,1722527441507,-988.31,0.00013698,2]
[333815658,1722527441517,-500.0,0.00013698,2]
[333815659,1722527441526,-500.0,0.00013698,2]
[333815660,1722527441537,-500.0,0.00013698,2]
[333815661,1722527441548,-500.0,0.00013698,2]
[333815662,1722527441557,-173.0145936,0.00013698,2]
[333815663,1722527441567,-500.54317155,0.00013698,2]
[333815664,1722527441578,-500.0,0.00013698,2]
[333815665,1722527441588,-864.97,0.00013698,2]
[333815666,1722527441598,-500.0,0.00013698,2]
[333815667,1722527441608,-500.0,0.00013698,2]
[333815668,1722527441618,-500.0,0.00013698,2]
[333815669,1722527441630,-500.70175465,0.00013698,2]
[333815670,1722527441640,-504.36534294,0.00013698,2]
[333815671,1722527441650,-1980.88,0.00013698,2]
[333815672,1722527441660,-501.10914025,0.00013698,2]
[333815673,1722527441670,-1451.7,0.00013698,2]
[333815674,1722527441681,-500.0,0.00013698,2]
[333815675,1722527441691,-554.22845092,0.00013698,2]
[333815676,1722527441700,-500.0,0.00013698,2]
[333815677,1722527441710,-500.0,0.00013698,2]
[333815678,1722527441719,-500.0,0.00013698,2]
[333815679,1722527441729,-711.36,0.00013698,2]
[333815680,1722527441741,-502.78378867,0.00013698,2]
[333815681,1722527441753,-500.0,0.00013698,2]
[333815682,1722527441763,-500.0,0.00013698,2]
[333815683,1722527441773,-500.0,0.00013698,2]
[333815684,1722527441786,-500.0,0.00013698,2]
[333815685,1722527441795,-500.2208847,0.00013698,2]
[333815686,1722527441805,-500.0,0.00013698,2]
[333815687,1722527441816,-500.0,0.00013698,2]
[333815688,1722527441826,-3412.02,0.00013698,2]
[333815689,1722527441836,-500.0,0.00013698,2]
[333815690,1722527441847,-1183.34,0.00013698,2]
[333815691,1722527441857,-500.0,0.00013698,2]
[333815692,1722527441866,-509.70524124,0.00013698,2]
[333815693,1722527441875,-504.51120884,0.00013698,2]
[333815694,1722527441885,-500.0,0.00013698,2]
[333815695,1722527441894,-844.95,0.00013698,2]
[333815696,1722527441904,-500.0,0.00013698,2]
[333815697,1722527441913,-500.0,0.00013698,2]
[333815698,1722527441923,-500.0,0.00013698,2]
[333815699,1722527441933,-500.0,0.00013698,2]
[333815700,1722527441943,-502.49796531,0.00013698,2]
[333815701,1722527441952,-500.0,0.00013698,2]
[333815702,1722527441962,-500.0,0.00013698,2]
[333815703,1722527441971,-500.0,0.00013698,2]
[333815704,1722527441981,-500.0,0.00013698,2]
[333815705,1722527441994,-500.0,0.00013698,2]
[333815706,1722527442003,-500.0,0.00013698,2]
[333815707,1722527442084,-500.0,0.00013698,2]
[333815708,1722527442104,-500.0,0.00013698,2]
[333815709,1722527442114,-500.0,0.00013698,2]
[333815710,1722527442123,-500.0,0.00013698,2]
[333815711,1722527442133,-503.631483,0.00013698,2]
[333815712,1722527442142,-500.0,0.00013698,2]
[333815713,1722527442152,-500.0,0.00013698,2]
[333815714,1722527442162,-500.0,0.00013698,2]
[333815715,1722527442172,-1234.1,0.00013698,2]
[333815716,1722527442182,-500.0,0.00013698,2]
[333815717,1722527442192,-500.0,0.00013698,2]
[333815718,1722527442202,-500.0,0.00013698,2]
[333815719,1722527442211,-2842.56,0.00013698,2]
[333815720,1722527442221,-500.0,0.00013698,2]
[333815721,1722527442232,-500.0,0.00013698,2]
[333815722,1722527442245,-615.01,0.00013698,2]
[333815723,1722527442255,-500.0,0.00013698,2]
[333815724,1722527442265,-500.0,0.00013698,2]
[333815725,1722527442275,-759.95,0.00013698,2]
[333815726,1722527442285,-595.29,0.00013698,2]
[333815727,1722527442296,-595.29,0.00013698,2]
[333815728,1722527442306,-595.29,0.00013698,2]
[333815729,1722527442316,-500.98309513,0.00013698,2]
[333815730,1722527442325,-500.0,0.00013698,2]
[333815731,1722527442335,-516.35918229,0.00013698,2]
[333815732,1722527442344,-500.0,0.00013698,2]
[333815733,1722527442355,-500.0,0.00013698,2]
[333815734,1722527442366,-500.0,0.00013698,2]
[333815735,1722527442376,-1146.41,0.00013698,2]
[333815736,1722527442385,-500.0,0.00013698,2]
[333815737,1722527442395,-500.0,0.00013698,2]
[333815738,1722527442404,-500.0,0.00013698,2]
[333815739,1722527442415,-500.0,0.00013698,2]
[333815740,1722527442424,-500.0,0.00013698,2]
[333815741,1722527442434,-500.0,0.00013698,2]
[333815742,1722527442444,-500.0,0.00013698,2]
[333815743,1722527442455,-500.0,0.00013698,2]
[333815744,1722527442465,-500.0,0.00013698,2]
[333815745,1722527442475,-500.0,0.00013698,2]
[333815746,1722527442484,-243.20500918,0.00013698,2]
[333815747,1722527442499,-500.0,0.00013698,2]
[333815748,1722527442508,-500.0,0.00013698,2]
[333815749,1722527442518,-500.0,0.00013698,2]
[333815750,1722527442527,-500.0,0.00013698,2]
[333815751,1722527442536,-3649.92,0.00013698,2]
[333815752,1722527442546,-501.09150348,0.00013698,2]
[333815753,1722527442555,-500.0,0.00013698,2]
[333815754,1722527442565,-500.0,0.00013698,2]
[333815755,1722527442575,-692.72,0.00013698,2]
[333815756,1722527442584,-150.0,0.00013698,2]
[333815757,1722527442593,-500.0,0.00013698,2]
[333815758,1722527442603,-500.0,0.00013698,2]
[333815759,1722527442614,-500.0,0.00013698,2]
[333815760,1722527442623,-4139.39,0.00013698,2]
[333815761,1722527442633,-500.0,0.00013698,2]
[333815762,1722527442643,-514.44022575,0.00013698,2]
[333815763,1722527442652,-539.15,0.00013698,2]
[333815764,1722527442661,-500.0,0.00013698,2]
[333815765,1722527442671,-264.79464039,0.00013698,2]
[333815766,1722527442681,-500.0,0.00013698,2]
[333815767,1722527442691,-500.0,0.00013698,2]
[333815768,1722527442700,-500.0,0.00013698,2]
[333815769,1722527442711,-500.0,0.00013698,2]
[333815770,1722527442721,-1029.07,0.00013698,2]
[333815771,1722527442731,-500.0,0.00013698,2]